[Event "*** Titled Tuesday Blitz"]
[Site "Chess.com"]
[Date "2019.02.05"]
[Round "1"]
[White "GeorgMeier"]
[Black "DiogenesSinopeus"]
[Result "1-0"]
[WhiteElo "2843"]
[BlackElo "2420"]
[TimeControl "180+2"]
[EndTime "13:07:11 PST"]
[Termination "GeorgMeier won by resignation"]

1. Nf3 {[%clk 0:03:01.9]} 1... Nf6 {[%clk 0:03:00.9]} 2. g3 {[%clk 0:03:03.3]}
2... d5 {[%clk 0:03:01.7]} 3. Bg2 {[%clk 0:03:04.9]} 3... c6 {[%clk 0:03:01.5]}
4. O-O {[%clk 0:03:06.5]} 4... Bg4 {[%clk 0:03:03.1]} 5. c4 {[%clk 0:03:07.9]}
5... e6 {[%clk 0:03:03.7]} 6. cxd5 {[%clk 0:03:09.1]} 6... Bxf3 {[%clk
0:03:05.1]} 7. Bxf3 {[%clk 0:03:10.1]} 7... cxd5 {[%clk 0:03:06.6]} 8. d3 {[%clk
0:03:10.8]} 8... Nc6 {[%clk 0:03:06.5]} 9. Nc3 {[%clk 0:03:12.3]} 9... Be7
{[%clk 0:03:03.5]} 10. e4 {[%clk 0:03:13.1]} 10... dxe4 {[%clk 0:03:04.1]} 11.
dxe4 {[%clk 0:03:14.1]} 11... e5 {[%clk 0:02:57.7]} 12. Be3 {[%clk 0:03:12.8]}
12... O-O {[%clk 0:02:54.7]} 13. Qb3 {[%clk 0:03:11.4]} 13... Nd4 {[%clk
0:02:34]} 14. Bxd4 {[%clk 0:03:12.1]} 14... Qxd4 {[%clk 0:02:19.3]} 15. Qxb7
{[%clk 0:03:10.6]} 15... Qb4 {[%clk 0:00:59.6]} 16. Qxb4 {[%clk 0:02:34.6]}
16... Bxb4 {[%clk 0:01:01.5]} 17. Rac1 {[%clk 0:02:35.7]} 17... Rab8 {[%clk
0:00:49.6]} 18. Na4 {[%clk 0:02:31.8]} 18... Rfc8 {[%clk 0:00:39.5]} 19. Rfd1
{[%clk 0:02:31]} 19... Kf8 {[%clk 0:00:38.4]} 20. Kf1 {[%clk 0:02:32.2]} 20...
Ke7 {[%clk 0:00:37.9]} 21. Ke2 {[%clk 0:02:33.4]} 21... h5 {[%clk 0:00:34.9]}
22. Bg2 {[%clk 0:02:33.8]} 22... Bd6 {[%clk 0:00:14]} 23. b3 {[%clk 0:02:31.6]}
23... Nh7 {[%clk 0:00:13.9]} 24. h4 {[%clk 0:02:31.1]} 24... Nf8 {[%clk
0:00:14.3]} 25. Bh3 {[%clk 0:02:32.2]} 25... Ne6 {[%clk 0:00:15.9]} 26. Bxe6
{[%clk 0:02:31.6]} 26... Kxe6 {[%clk 0:00:17.5]} 27. Nb2 {[%clk 0:02:13.8]}
27... f6 {[%clk 0:00:18.7]} 28. Rxc8 {[%clk 0:02:09.7]} 28... Rxc8 {[%clk
0:00:19.5]} 29. Nc4 {[%clk 0:02:11.6]} 29... Be7 {[%clk 0:00:20.8]} 30. Rd5
{[%clk 0:02:11.9]} 30... g5 {[%clk 0:00:21.8]} 31. Ra5 {[%clk 0:02:12.1]} 31...
Rc7 {[%clk 0:00:22.4]} 32. Ra6+ {[%clk 0:02:12.8]} 32... Kf7 {[%clk 0:00:23.4]}
33. Ne3 {[%clk 0:02:14.3]} 33... Kg6 {[%clk 0:00:17.8]} 34. Nd5 {[%clk
0:02:13.9]} 34... Rd7 {[%clk 0:00:12.2]} 35. b4 {[%clk 0:02:15]} 35... Bd8
{[%clk 0:00:13]} 36. a4 {[%clk 0:02:14.7]} 36... Kg7 {[%clk 0:00:13.3]} 37. a5
{[%clk 0:02:14.9]} 37... f5 {[%clk 0:00:14.8]} 38. hxg5 {[%clk 0:02:09.6]} 38...
fxe4 {[%clk 0:00:15.8]} 39. Nf6 {[%clk 0:02:10.6]} 39... Bxf6 {[%clk 0:00:10]}
40. gxf6+ {[%clk 0:02:12.5]} 40... Kf7 {[%clk 0:00:11.1]} 41. Ke3 {[%clk
0:02:14.3]} 41... Rd4 {[%clk 0:00:09.1]} 42. Rxa7+ {[%clk 0:02:15.8]} 42... Kxf6
{[%clk 0:00:10.2]} 43. Rb7 {[%clk 0:02:17.6]} 43... Kf5 {[%clk 0:00:10.6]} 44.
a6 {[%clk 0:02:16.8]} 44... Rd3+ {[%clk 0:00:11.7]} 45. Ke2 {[%clk 0:02:18.5]}
45... Ra3 {[%clk 0:00:08.7]} 46. a7 {[%clk 0:02:20]} 46... h4 {[%clk 0:00:09.1]}
47. gxh4 {[%clk 0:02:19]} 47... Kf4 {[%clk 0:00:11]} 48. Rf7+ {[%clk 0:02:18.8]}
48... Kg4 {[%clk 0:00:12]} 49. b5 {[%clk 0:02:20.4]} 1-0

[Event "*** Titled Tuesday Blitz"]
[Site "Chess.com"]
[Date "2019.02.05"]
[Round "1"]
[White "Yaacovn"]
[Black "Zufi1811"]
[Result "0-1"]
[WhiteElo "2707"]
[BlackElo "2346"]
[TimeControl "180+2"]
[EndTime "13:07:11 PST"]
[Termination "Zufi1811 won on time"]

1. d4 {[%clk 0:03:01.7]} 1... Nf6 {[%clk 0:02:58]} 2. Nf3 {[%clk 0:03:02.2]}
2... d5 {[%clk 0:02:57.4]} 3. c4 {[%clk 0:03:02.1]} 3... e6 {[%clk 0:02:57.1]}
4. Nc3 {[%clk 0:03:02.6]} 4... Nbd7 {[%clk 0:02:57.5]} 5. Bg5 {[%clk 0:03:02.8]}
5... c6 {[%clk 0:02:57.5]} 6. e3 {[%clk 0:03:03.3]} 6... Qa5 {[%clk 0:02:57.8]}
7. Nd2 {[%clk 0:03:02]} 7... dxc4 {[%clk 0:02:57.6]} 8. Bxf6 {[%clk 0:00:25.8]}
8... Nxf6 {[%clk 0:02:59.5]} 9. Nxc4 {[%clk 0:00:26.7]} 9... Qc7 {[%clk
0:03:00.1]} 10. Be2 {[%clk 0:00:27.7]} 10... Be7 {[%clk 0:03:01.1]} 11. O-O
{[%clk 0:00:29]} 11... O-O {[%clk 0:03:02.2]} 12. Rc1 {[%clk 0:00:30.5]} 12...
Rd8 {[%clk 0:02:50]} 13. Qc2 {[%clk 0:00:31.3]} 13... Bd7 {[%clk 0:02:50.3]} 14.
Rfd1 {[%clk 0:00:32]} 14... Be8 {[%clk 0:02:51.4]} 15. Bf3 {[%clk 0:00:32.8]}
15... Rac8 {[%clk 0:02:52.2]} 16. h3 {[%clk 0:00:33.8]} 16... Qb8 {[%clk
0:02:50]} 17. Ne4 {[%clk 0:00:33.7]} 17... Nxe4 {[%clk 0:02:47.2]} 18. Bxe4
{[%clk 0:00:34.4]} 18... g6 {[%clk 0:02:48.6]} 19. Qb3 {[%clk 0:00:33.6]} 19...
b6 {[%clk 0:02:43.1]} 20. Bf3 {[%clk 0:00:33.9]} 20... c5 {[%clk 0:02:41.8]} 21.
d5 {[%clk 0:00:32.7]} 21... b5 {[%clk 0:02:24.3]} 22. Na5 {[%clk 0:00:33.2]}
22... c4 {[%clk 0:02:24.1]} 23. Qc3 {[%clk 0:00:33]} 23... exd5 {[%clk
0:02:16.9]} 24. Rxd5 {[%clk 0:00:28.9]} 24... Rxd5 {[%clk 0:02:14.4]} 25. Bxd5
{[%clk 0:00:28.9]} 25... Qb6 {[%clk 0:02:15.9]} 26. Rd1 {[%clk 0:00:17.8]} 26...
b4 {[%clk 0:02:09.7]} 27. Qe5 {[%clk 0:00:17.1]} 27... Bf6 {[%clk 0:02:09.2]}
28. Qf4 {[%clk 0:00:15.8]} 28... Qxa5 {[%clk 0:01:47.9]} 29. Qxf6 {[%clk
0:00:13.4]} 29... Qxa2 {[%clk 0:01:49.4]} 30. e4 {[%clk 0:00:08.1]} 30... Qa4
{[%clk 0:01:40]} 31. Rd4 {[%clk 0:00:05.5]} 31... Qa1+ {[%clk 0:01:37.6]} 32.
Kh2 {[%clk 0:00:05.6]} 32... Qxb2 {[%clk 0:01:38.8]} 0-1

[Event "*** Titled Tuesday Blitz"]
[Site "Chess.com"]
[Date "2019.02.05"]
[Round "1"]
[White "jsdbv18"]
[Black "Synctel"]
[Result "1-0"]
[WhiteElo "2474"]
[BlackElo "1890"]
[TimeControl "180+2"]
[EndTime "13:07:17 PST"]
[Termination "jsdbv18 won by checkmate"]

1. e4 {[%clk 0:03:01.9]} 1... e6 {[%clk 0:02:59.9]} 2. d4 {[%clk 0:03:02.3]}
2... d5 {[%clk 0:03:00.3]} 3. Nd2 {[%clk 0:03:03.7]} 3... Nc6 {[%clk 0:02:55.7]}
4. Ngf3 {[%clk 0:03:03.6]} 4... Nf6 {[%clk 0:02:56.4]} 5. e5 {[%clk 0:03:04.2]}
5... Nd7 {[%clk 0:02:57.6]} 6. Bb5 {[%clk 0:03:05.6]} 6... Be7 {[%clk
0:02:57.3]} 7. O-O {[%clk 0:03:05.9]} 7... O-O {[%clk 0:02:56.2]} 8. c3 {[%clk
0:03:06.7]} 8... f6 {[%clk 0:02:55.8]} 9. Re1 {[%clk 0:03:07.9]} 9... fxe5
{[%clk 0:02:52.1]} 10. dxe5 {[%clk 0:03:08.8]} 10... Nc5 {[%clk 0:02:16.7]} 11.
Nf1 {[%clk 0:03:04.5]} 11... a6 {[%clk 0:02:15.6]} 12. Be2 {[%clk 0:03:04.9]}
12... Ne4 {[%clk 0:02:13.2]} 13. Bd3 {[%clk 0:03:01.8]} 13... Nc5 {[%clk
0:02:04.8]} 14. Bc2 {[%clk 0:03:02.1]} 14... a5 {[%clk 0:01:58.7]} 15. Ng3
{[%clk 0:03:02.5]} 15... Bd7 {[%clk 0:01:58.9]} 16. Nd4 {[%clk 0:02:57.6]} 16...
Nxd4 {[%clk 0:01:46.6]} 17. cxd4 {[%clk 0:02:56.8]} 17... Na6 {[%clk 0:01:48.2]}
18. Qd3 {[%clk 0:02:53.1]} 18... g6 {[%clk 0:01:42.5]} 19. a3 {[%clk 0:02:54.3]}
19... c5 {[%clk 0:01:42.5]} 20. Bh6 {[%clk 0:02:48.1]} 20... Rf7 {[%clk
0:01:35.4]} 21. f4 {[%clk 0:02:37]} 21... cxd4 {[%clk 0:01:36.3]} 22. Ne2 {[%clk
0:02:34.9]} 22... Nc5 {[%clk 0:01:27.2]} 23. Qh3 {[%clk 0:02:31.9]} 23... Ne4
{[%clk 0:01:27.2]} 24. Bd3 {[%clk 0:02:28.4]} 24... Bf8 {[%clk 0:01:17.4]} 25.
Bxf8 {[%clk 0:02:28]} 25... Qxf8 {[%clk 0:01:09.9]} 26. g3 {[%clk 0:02:16.3]}
26... Rc8 {[%clk 0:01:09.4]} 27. Rad1 {[%clk 0:02:16.6]} 27... Ba4 {[%clk
0:01:09]} 28. Rc1 {[%clk 0:02:15.3]} 28... Bd7 {[%clk 0:00:59.8]} 29. Nxd4
{[%clk 0:02:15.2]} 29... Qe7 {[%clk 0:00:42.4]} 30. Nf3 {[%clk 0:02:13.3]} 30...
Rff8 {[%clk 0:00:38.8]} 31. Bxe4 {[%clk 0:02:13]} 31... dxe4 {[%clk 0:00:36.4]}
32. Ng5 {[%clk 0:02:14.4]} 32... e3 {[%clk 0:00:28.7]} 33. Qg2 {[%clk
0:02:07.7]} 33... Bb5 {[%clk 0:00:22.1]} 34. Ne4 {[%clk 0:02:02.9]} 34... e2
{[%clk 0:00:19.8]} 35. Nf6+ {[%clk 0:01:59.9]} 35... Kh8 {[%clk 0:00:21.4]} 36.
Qe4 {[%clk 0:01:53.5]} 36... Rxc1 {[%clk 0:00:18.6]} 37. Rxc1 {[%clk 0:01:54.1]}
37... Rd8 {[%clk 0:00:20.3]} 38. Qc2 {[%clk 0:01:43.2]} 38... Rd1+ {[%clk
0:00:11.3]} 39. Rxd1 {[%clk 0:01:43.5]} 39... exd1=Q+ {[%clk 0:00:12.2]} 40.
Qxd1 {[%clk 0:01:44.3]} 40... Qc5+ {[%clk 0:00:14]} 41. Kg2 {[%clk 0:01:44.4]}
41... Bc6+ {[%clk 0:00:13.5]} 42. Kh3 {[%clk 0:01:45.4]} 42... Qf2 {[%clk
0:00:14.4]} 43. Qd8+ {[%clk 0:01:45.6]} 43... Kg7 {[%clk 0:00:15.8]} 44. Qg8+
{[%clk 0:01:42.8]} 44... Kh6 {[%clk 0:00:16.2]} 45. Qxh7# {[%clk 0:01:44.3]} 1-0

[Event "*** Titled Tuesday Blitz"]
[Site "Chess.com"]
[Date "2019.02.05"]
[Round "1"]
[White "Alex_Terzi"]
[Black "BillForster"]
[Result "1-0"]
[WhiteElo "2462"]
[BlackElo "1711"]
[TimeControl "180+2"]
[EndTime "13:07:20 PST"]
[Termination "Alex_Terzi won by resignation"]

1. g3 {[%clk 0:02:10]} 1... d5 {[%clk 0:02:58.2]} 2. Bg2 {[%clk 0:02:10.4]} 2...
c6 {[%clk 0:02:57.2]} 3. d3 {[%clk 0:02:11.2]} 3... e5 {[%clk 0:02:55.5]} 4. Nf3
{[%clk 0:02:12.1]} 4... Bd6 {[%clk 0:02:49.9]} 5. O-O {[%clk 0:02:12.4]} 5... f5
{[%clk 0:02:48.3]} 6. e4 {[%clk 0:02:04.6]} 6... Nf6 {[%clk 0:02:33.7]} 7. exf5
{[%clk 0:01:32.3]} 7... Bxf5 {[%clk 0:02:32.6]} 8. Re1 {[%clk 0:01:33.7]} 8...
Nbd7 {[%clk 0:02:28.7]} 9. Nxe5 {[%clk 0:01:34.4]} 9... O-O {[%clk 0:01:38.9]}
10. Nxd7 {[%clk 0:01:31.3]} 10... Qxd7 {[%clk 0:01:38]} 11. Nc3 {[%clk 0:01:28]}
11... Bh3 {[%clk 0:01:20.8]} 12. Bd2 {[%clk 0:01:15.7]} 12... Bxg2 {[%clk
0:01:19.1]} 13. Kxg2 {[%clk 0:01:16.6]} 13... Ng4 {[%clk 0:01:08.9]} 14. f3
{[%clk 0:01:17]} 14... Ne5 {[%clk 0:00:52.5]} 15. f4 {[%clk 0:01:12.7]} 15...
Ng4 {[%clk 0:00:46.4]} 16. Qe2 {[%clk 0:00:54.5]} 16... Rf6 {[%clk 0:00:38.3]}
17. a4 {[%clk 0:00:20.2]} 17... Rh6 {[%clk 0:00:34.8]} 18. h4 {[%clk 0:00:21.2]}
18... Rf8 {[%clk 0:00:28.3]} 19. Rf1 {[%clk 0:00:21.9]} 19... Qf5 {[%clk
0:00:20]} 20. Rae1 {[%clk 0:00:21.8]} 20... Qh5 {[%clk 0:00:12.1]} 21. Nd1
{[%clk 0:00:20.1]} 21... Bxf4 {[%clk 0:00:05.9]} 22. Bxf4 {[%clk 0:00:18.7]} 1-0

[Event "*** Titled Tuesday Blitz"]
[Site "Chess.com"]
[Date "2019.02.05"]
[Round "1"]
[White "Vulcanochess"]
[Black "lucasmito"]
[Result "1-0"]
[WhiteElo "2431"]
[BlackElo "2576"]
[TimeControl "180+2"]
[EndTime "13:07:21 PST"]
[Termination "Vulcanochess won by resignation"]

1. d4 {[%clk 0:03:01.6]} 1... Nf6 {[%clk 0:02:55.9]} 2. c4 {[%clk 0:03:02.7]}
2... g6 {[%clk 0:02:49.5]} 3. Nc3 {[%clk 0:03:03.1]} 3... d5 {[%clk 0:02:45.7]}
4. cxd5 {[%clk 0:03:03.3]} 4... Nxd5 {[%clk 0:02:43.3]} 5. e4 {[%clk 0:03:04.8]}
5... Nxc3 {[%clk 0:02:44.5]} 6. bxc3 {[%clk 0:03:06.2]} 6... Bg7 {[%clk
0:02:46.4]} 7. Bc4 {[%clk 0:03:07.2]} 7... c5 {[%clk 0:02:47.4]} 8. Ne2 {[%clk
0:03:08.5]} 8... Qc7 {[%clk 0:02:46.6]} 9. Bb3 {[%clk 0:02:57.8]} 9... Nc6
{[%clk 0:02:43.6]} 10. O-O {[%clk 0:02:58.1]} 10... O-O {[%clk 0:02:39.9]} 11.
Bf4 {[%clk 0:02:57]} 11... e5 {[%clk 0:02:39]} 12. Bg3 {[%clk 0:02:57.9]} 12...
cxd4 {[%clk 0:02:39.2]} 13. cxd4 {[%clk 0:02:58.8]} 13... Qe7 {[%clk 0:02:26.2]}
14. dxe5 {[%clk 0:02:38.1]} 14... Nxe5 {[%clk 0:02:22.6]} 15. Rc1 {[%clk
0:02:37.8]} 15... Be6 {[%clk 0:02:19.7]} 16. Bd5 {[%clk 0:02:36.9]} 16... Rfd8
{[%clk 0:02:17.1]} 17. Qb3 {[%clk 0:02:37.7]} 17... Bxd5 {[%clk 0:02:14.8]} 18.
exd5 {[%clk 0:02:35.1]} 18... b6 {[%clk 0:02:13.1]} 19. Nd4 {[%clk 0:02:32.2]}
19... Qd7 {[%clk 0:01:50.1]} 20. Nc6 {[%clk 0:02:27.7]} 20... Re8 {[%clk
0:01:47.5]} 21. Rfd1 {[%clk 0:02:22.9]} 21... Rac8 {[%clk 0:01:35.2]} 22. h3
{[%clk 0:02:22.1]} 22... Nxc6 {[%clk 0:01:24.3]} 23. dxc6 {[%clk 0:02:22.4]}
23... Qf5 {[%clk 0:01:23.9]} 24. Rd5 {[%clk 0:02:08.5]} 24... Qe6 {[%clk
0:01:19.1]} 25. c7 {[%clk 0:02:04.8]} 25... Bf6 {[%clk 0:01:18.5]} 26. Rcd1
{[%clk 0:02:02.2]} 26... Kg7 {[%clk 0:01:13.4]} 27. Qa4 {[%clk 0:01:56.6]} 27...
a5 {[%clk 0:01:03]} 28. Rd6 {[%clk 0:01:57.2]} 28... Qe2 {[%clk 0:00:40.4]} 29.
Rxb6 {[%clk 0:01:40.8]} 29... Re4 {[%clk 0:00:39.6]} 30. Qd7 {[%clk 0:01:33.5]}
30... Ree8 {[%clk 0:00:19.1]} 31. Rb8 {[%clk 0:01:23.3]} 31... Qa6 {[%clk
0:00:12.6]} 32. Rd6 {[%clk 0:01:17.2]} 32... Qe2 {[%clk 0:00:02.9]} 1-0

[Event "*** Titled Tuesday Blitz"]
[Site "Chess.com"]
[Date "2019.02.05"]
[Round "1"]
[White "Gabrielian_Artur"]
[Black "staz_staz"]
[Result "1-0"]
[WhiteElo "2737"]
[BlackElo "2349"]
[TimeControl "180+2"]
[EndTime "13:07:22 PST"]
[Termination "Gabrielian_Artur won by resignation"]

1. e4 {[%clk 0:03:00]} 1... c5 {[%clk 0:02:59.4]} 2. Nc3 {[%clk 0:03:00.6]} 2...
g6 {[%clk 0:02:57.2]} 3. g3 {[%clk 0:02:58.7]} 3... Bg7 {[%clk 0:02:57.5]} 4.
Bg2 {[%clk 0:03:00]} 4... Nc6 {[%clk 0:02:57.4]} 5. d3 {[%clk 0:03:01.4]} 5...
e5 {[%clk 0:02:56.8]} 6. Be3 {[%clk 0:03:01.9]} 6... d6 {[%clk 0:02:57.4]} 7.
Qd2 {[%clk 0:03:03.2]} 7... Be6 {[%clk 0:02:56.7]} 8. h4 {[%clk 0:03:02.7]} 8...
a6 {[%clk 0:02:40.5]} 9. h5 {[%clk 0:03:02.8]} 9... Nge7 {[%clk 0:02:31.8]} 10.
Nf3 {[%clk 0:02:44]} 10... Qd7 {[%clk 0:02:26]} 11. Ng5 {[%clk 0:02:43.1]} 11...
Nd4 {[%clk 0:02:03.4]} 12. Nd5 {[%clk 0:02:36.8]} 12... Nxd5 {[%clk 0:02:01.4]}
13. exd5 {[%clk 0:02:37.4]} 13... Bf5 {[%clk 0:01:53.1]} 14. c3 {[%clk
0:02:37.2]} 14... Nb5 {[%clk 0:01:49.9]} 15. h6 {[%clk 0:02:16.8]} 15... Bf6
{[%clk 0:01:49.6]} 16. Ne4 {[%clk 0:02:17.9]} 16... Bxe4 {[%clk 0:01:41.6]} 17.
dxe4 {[%clk 0:02:18.5]} 17... Nc7 {[%clk 0:01:38.3]} 18. f4 {[%clk 0:02:13]}
18... O-O {[%clk 0:01:26.9]} 19. O-O {[%clk 0:02:11.4]} 19... b5 {[%clk
0:01:20.3]} 20. Kh2 {[%clk 0:01:50.7]} 20... Qg4 {[%clk 0:01:17.7]} 21. Bh3
{[%clk 0:01:47.3]} 21... Qh5 {[%clk 0:01:16.4]} 22. g4 {[%clk 0:01:48.4]} 22...
Qh4 {[%clk 0:01:10.7]} 23. Bf2 {[%clk 0:01:48.2]} 23... Qxh6 {[%clk 0:01:04.8]}
24. g5 {[%clk 0:01:49.3]} 24... Qg7 {[%clk 0:01:01.1]} 25. gxf6 {[%clk
0:01:49.9]} 25... Qxf6 {[%clk 0:01:03]} 26. Bg3 {[%clk 0:01:49.2]} 26... exf4
{[%clk 0:00:58.3]} 27. Rxf4 {[%clk 0:01:47.8]} 27... Qe7 {[%clk 0:00:58.6]} 28.
Raf1 {[%clk 0:01:47.5]} 28... Ne8 {[%clk 0:00:55.7]} 29. Qf2 {[%clk 0:01:45]}
29... Ng7 {[%clk 0:00:54.7]} 30. Rf6 {[%clk 0:01:40.6]} 30... Rad8 {[%clk
0:00:39.5]} 31. Bh4 {[%clk 0:01:27.8]} 31... Qe5+ {[%clk 0:00:30.3]} 32. Qg3
{[%clk 0:01:24.2]} 32... Qxe4 {[%clk 0:00:29]} 33. R6f4 {[%clk 0:01:24.6]} 33...
Qxd5 {[%clk 0:00:18]} 34. Bxd8 {[%clk 0:01:24.6]} 34... Rxd8 {[%clk 0:00:19.9]}
35. Rxf7 {[%clk 0:01:25.3]} 35... Nf5 {[%clk 0:00:18]} 36. R7xf5 {[%clk
0:01:25.3]} 1-0

[Event "*** Titled Tuesday Blitz"]
[Site "Chess.com"]
[Date "2019.02.05"]
[Round "1"]
[White "RiskyDecision"]
[Black "AryanTari"]
[Result "0-1"]
[WhiteElo "2406"]
[BlackElo "2840"]
[TimeControl "180+2"]
[EndTime "13:07:25 PST"]
[Termination "AryanTari won by resignation"]

1. d4 {[%clk 0:03:00.6]} 1... d5 {[%clk 0:02:56.8]} 2. c4 {[%clk 0:03:00.8]}
2... dxc4 {[%clk 0:02:58.7]} 3. e4 {[%clk 0:03:00.6]} 3... b5 {[%clk 0:02:55.9]}
4. a4 {[%clk 0:02:59.3]} 4... c6 {[%clk 0:02:57.1]} 5. axb5 {[%clk 0:02:56.3]}
5... cxb5 {[%clk 0:02:59]} 6. Nc3 {[%clk 0:02:54.9]} 6... a6 {[%clk 0:02:56.4]}
7. Nxb5 {[%clk 0:02:48.9]} 7... axb5 {[%clk 0:02:58.3]} 8. Rxa8 {[%clk
0:02:49.6]} 8... Bb7 {[%clk 0:02:59.7]} 9. Ra1 {[%clk 0:02:43.3]} 9... e6 {[%clk
0:03:00.5]} 10. f3 {[%clk 0:02:38.4]} 10... f5 {[%clk 0:02:52.5]} 11. exf5
{[%clk 0:02:31]} 11... Nh6 {[%clk 0:02:53.6]} 12. fxe6 {[%clk 0:02:22.8]} 12...
Nf5 {[%clk 0:02:54.8]} 13. g3 {[%clk 0:02:12.7]} 13... Nxd4 {[%clk 0:02:48.3]}
14. Kf2 {[%clk 0:02:05.2]} 14... Bc5 {[%clk 0:02:36.2]} 15. Be3 {[%clk
0:02:04.4]} 15... Qf6 {[%clk 0:02:31.2]} 16. Bg2 {[%clk 0:01:58.3]} 16... Nb3
{[%clk 0:02:11.6]} 17. Bxc5 {[%clk 0:01:46]} 17... Nxc5 {[%clk 0:02:13.1]} 18.
Ne2 {[%clk 0:01:24.7]} 18... Nd3+ {[%clk 0:02:13]} 19. Kg1 {[%clk 0:01:19.9]}
19... Qe5 {[%clk 0:02:10.6]} 20. h4 {[%clk 0:01:11.3]} 20... O-O {[%clk
0:02:09.9]} 21. Kh2 {[%clk 0:01:06.8]} 21... Nf2 {[%clk 0:02:07.2]} 22. Qd2
{[%clk 0:00:54.5]} 22... Nxh1 {[%clk 0:01:58.4]} 23. Rxh1 {[%clk 0:00:51.1]}
23... Qxe6 {[%clk 0:01:54.3]} 24. Nf4 {[%clk 0:00:48.6]} 24... Qf6 {[%clk
0:01:46.4]} 25. Re1 {[%clk 0:00:45.8]} 25... Nc6 {[%clk 0:01:44.6]} 26. Re6
{[%clk 0:00:44.6]} 26... Qd4 {[%clk 0:01:45.3]} 27. Qxd4 {[%clk 0:00:39.7]}
27... Nxd4 {[%clk 0:01:47.2]} 28. Re7 {[%clk 0:00:41]} 28... Bxf3 {[%clk
0:01:43.2]} 29. Bxf3 {[%clk 0:00:39.9]} 29... Nxf3+ {[%clk 0:01:45.1]} 30. Kg2
{[%clk 0:00:40.7]} 30... Nxh4+ {[%clk 0:01:46.3]} 31. Kh3 {[%clk 0:00:32.6]}
31... Ng6 {[%clk 0:01:43.5]} 32. Nxg6 {[%clk 0:00:32.4]} 32... hxg6 {[%clk
0:01:45.4]} 33. Rb7 {[%clk 0:00:31.1]} 33... Rf5 {[%clk 0:01:46.3]} 34. g4
{[%clk 0:00:30.1]} 34... Rf3+ {[%clk 0:01:42.5]} 35. Kh4 {[%clk 0:00:27.8]}
35... Rb3 {[%clk 0:01:44.4]} 36. Kg5 {[%clk 0:00:27.7]} 36... Kh7 {[%clk
0:01:45.7]} 37. Rc7 {[%clk 0:00:13.1]} 37... Rxb2 {[%clk 0:01:46]} 38. Rc5
{[%clk 0:00:11.2]} 38... Rb3 {[%clk 0:01:46.3]} 39. Rc7 {[%clk 0:00:11.4]} 39...
c3 {[%clk 0:01:47.2]} 40. Rc5 {[%clk 0:00:11.6]} 40... b4 {[%clk 0:01:48.3]} 41.
Rc4 {[%clk 0:00:12.4]} 41... Rb2 {[%clk 0:01:49.3]} 42. Rc7 {[%clk 0:00:13.1]}
42... c2 {[%clk 0:01:50.5]} 43. Rc4 {[%clk 0:00:13.3]} 43... b3 {[%clk
0:01:51.9]} 44. Rc3 {[%clk 0:00:13.1]} 44... Rb1 {[%clk 0:01:53.2]} 45. Rh3+
{[%clk 0:00:10]} 45... Kg8 {[%clk 0:01:53.7]} 0-1

[Event "*** Titled Tuesday Blitz"]
[Site "Chess.com"]
[Date "2019.02.05"]
[Round "1"]
[White "kacprekt"]
[Black "murmah2003"]
[Result "0-1"]
[WhiteElo "2296"]
[BlackElo "2658"]
[TimeControl "180+2"]
[EndTime "13:07:29 PST"]
[Termination "murmah2003 won by resignation"]

1. d4 {[%clk 0:03:01.9]} 1... Nf6 {[%clk 0:02:57]} 2. c4 {[%clk 0:03:02.5]} 2...
c5 {[%clk 0:02:47.9]} 3. d5 {[%clk 0:03:03.3]} 3... b5 {[%clk 0:02:39.3]} 4.
cxb5 {[%clk 0:03:04.4]} 4... a6 {[%clk 0:02:39.9]} 5. bxa6 {[%clk 0:03:05.4]}
5... Bxa6 {[%clk 0:02:41.8]} 6. Nc3 {[%clk 0:03:06.2]} 6... g6 {[%clk 0:02:41]}
7. Nf3 {[%clk 0:03:07]} 7... d6 {[%clk 0:02:41.7]} 8. g3 {[%clk 0:03:08.3]} 8...
Bg7 {[%clk 0:02:42.8]} 9. Bg2 {[%clk 0:03:09.8]} 9... O-O {[%clk 0:02:44.7]} 10.
Rb1 {[%clk 0:03:10.7]} 10... Nbd7 {[%clk 0:02:45.5]} 11. O-O {[%clk 0:03:11.6]}
11... Ne8 {[%clk 0:02:46.9]} 12. Qc2 {[%clk 0:03:00.3]} 12... Nc7 {[%clk
0:02:37.8]} 13. Rd1 {[%clk 0:02:53]} 13... Qb8 {[%clk 0:02:21.3]} 14. Bd2 {[%clk
0:02:14.1]} 14... Nb5 {[%clk 0:02:13.1]} 15. e4 {[%clk 0:02:00.7]} 15... Nd4
{[%clk 0:01:58]} 16. Nxd4 {[%clk 0:01:28.5]} 16... cxd4 {[%clk 0:01:59.9]} 17.
Na4 {[%clk 0:01:29.1]} 17... Rc8 {[%clk 0:01:49]} 18. Qb3 {[%clk 0:01:30]} 18...
Qxb3 {[%clk 0:01:50.4]} 19. axb3 {[%clk 0:01:31.1]} 19... Bd3 {[%clk 0:01:52.3]}
20. Ra1 {[%clk 0:01:14.3]} 20... Bc2 {[%clk 0:01:49.4]} 21. Rdc1 {[%clk
0:01:15]} 21... Bxb3 {[%clk 0:01:48.7]} 22. Rxc8+ {[%clk 0:01:15.9]} 22... Rxc8
{[%clk 0:01:50.6]} 23. Ra3 {[%clk 0:01:13.4]} 23... Bc2 {[%clk 0:01:28]} 24. b3
{[%clk 0:00:38.9]} 24... d3 {[%clk 0:01:20.9]} 25. Bf1 {[%clk 0:00:32.6]} 25...
Rb8 {[%clk 0:01:06.1]} 26. Nc3 {[%clk 0:00:22.5]} 26... Nc5 {[%clk 0:01:02.7]}
27. b4 {[%clk 0:00:19.7]} 27... Bxc3 {[%clk 0:01:01.9]} 28. Bxc3 {[%clk
0:00:09.2]} 28... Nxe4 {[%clk 0:01:01.6]} 29. b5 {[%clk 0:00:03.3]} 29... Nxc3
{[%clk 0:00:59.9]} 30. Rxc3 {[%clk 0:00:05.2]} 30... d2 {[%clk 0:01:01.3]} 31.
Be2 {[%clk 0:00:05.6]} 31... d1=Q+ {[%clk 0:01:02.6]} 32. Bxd1 {[%clk 0:00:07]}
32... Bxd1 {[%clk 0:01:04.5]} 33. Rc7 {[%clk 0:00:07.3]} 33... Rxb5 {[%clk
0:01:03.7]} 34. Rxe7 {[%clk 0:00:08.3]} 34... Bf3 {[%clk 0:01:03.2]} 0-1